[Event "*** Titled Tuesday Blitz"]
[Site "Chess.com"]
[Date "2020.01.07"]
[Round "1"]
[White "dianosky"]
[Black "mersad_98"]
[Result "0-1"]
[WhiteElo "2392"]
[BlackElo "2754"]
[TimeControl "180+2"]
[EndTime "13:01:59 PST"]
[Termination "mersad_98 won by resignation"]

1. d4 {[%clk 0:03:01.9]} 1... d5 {[%clk 0:03:01.3]} 2. c4 {[%clk 0:03:03.1]}
2... dxc4 {[%clk 0:03:03.2]} 3. Nc3 {[%clk 0:03:03.9]} 3... e5 {[%clk
0:03:02.1]} 4. d5 {[%clk 0:03:01.2]} 4... Nf6 {[%clk 0:03:02.1]} 5. Qa4+ {[%clk
0:02:56.3]} 5... c6 {[%clk 0:03:00.9]} 6. dxc6 {[%clk 0:02:55.4]} 6... Nxc6
{[%clk 0:03:02.6]} 7. Qxc4 {[%clk 0:02:54.8]} 7... Be6 {[%clk 0:03:03.5]} 8. Qa4
{[%clk 0:02:55.9]} 8... Qd4 {[%clk 0:02:53]} 9. a3 {[%clk 0:02:46.7]} 9... Qxa4
{[%clk 0:02:45.7]} 10. Nxa4 {[%clk 0:02:47.5]} 10... Nd4 {[%clk 0:02:47.6]} 11.
Rb1 {[%clk 0:02:44.3]} 11... Nc2+ {[%clk 0:02:35.1]} 12. Kd2 {[%clk 0:02:36.9]}
12... Bb3 {[%clk 0:02:36.5]} 13. Nc3 {[%clk 0:02:37.9]} 13... O-O-O+ {[%clk
0:02:37.9]} 0-1

[Event "*** Titled Tuesday Blitz"]
[Site "Chess.com"]
[Date "2020.01.07"]
[Round "1"]
[White "Indianlad"]
[Black "AleksanderHnydiuk"]
[Result "1-0"]
[WhiteElo "2927"]
[BlackElo "2478"]
[TimeControl "180+2"]
[EndTime "13:02:18 PST"]
[Termination "Indianlad won by resignation"]

1. d4 {[%clk 0:03:01.8]} 1... Nf6 {[%clk 0:03:00.3]} 2. c4 {[%clk 0:03:02.6]}
2... g6 {[%clk 0:03:01.5]} 3. g3 {[%clk 0:03:03]} 3... c5 {[%clk 0:03:01.2]} 4.
dxc5 {[%clk 0:03:03]} 4... Na6 {[%clk 0:03:01.3]} 5. Nc3 {[%clk 0:03:03.6]} 5...
Nxc5 {[%clk 0:03:02.1]} 6. Bg2 {[%clk 0:03:05.1]} 6... Bg7 {[%clk 0:03:02.9]} 7.
e4 {[%clk 0:03:06.5]} 7... O-O {[%clk 0:02:58.3]} 8. Nge2 {[%clk 0:03:07.9]}
8... d6 {[%clk 0:02:55.1]} 9. O-O {[%clk 0:03:09.3]} 9... Be6 {[%clk 0:02:48.1]}
10. b3 {[%clk 0:02:51.4]} 10... Qd7 {[%clk 0:02:49]} 11. Be3 {[%clk 0:02:48.2]}
11... Bh3 {[%clk 0:02:38.7]} 12. e5 {[%clk 0:02:39.6]} 12... Bxg2 {[%clk
0:02:37.1]} 13. exf6 {[%clk 0:02:40.2]} 13... Bf3 {[%clk 0:02:31.2]} 14. fxg7
{[%clk 0:02:38.3]} 14... Kxg7 {[%clk 0:02:20.9]} 15. Bxc5 {[%clk 0:02:39]} 1-0

[Event "*** Titled Tuesday Blitz"]
[Site "Chess.com"]
[Date "2020.01.07"]
[Round "1"]
[White "Gabrielian_Artur"]
[Black "AlexTruskavetsky"]
[Result "1-0"]
[WhiteElo "2792"]
[BlackElo "2411"]
[TimeControl "180+2"]
[EndTime "13:02:47 PST"]
[Termination "Gabrielian_Artur won by resignation"]

1. e4 {[%clk 0:02:58]} 1... c6 {[%clk 0:02:44]} 2. d4 {[%clk 0:02:58.1]} 2... d5
{[%clk 0:02:44.4]} 3. Nd2 {[%clk 0:02:59.3]} 3... dxe4 {[%clk 0:02:43.5]} 4.
Nxe4 {[%clk 0:03:00.4]} 4... Nf6 {[%clk 0:02:42.5]} 5. Nxf6+ {[%clk 0:03:00.6]}
5... exf6 {[%clk 0:02:43.5]} 6. c3 {[%clk 0:03:01.7]} 6... Bd6 {[%clk
0:02:43.8]} 7. Bd3 {[%clk 0:03:02.7]} 7... O-O {[%clk 0:02:44.9]} 8. Qc2 {[%clk
0:03:03.5]} 8... Re8+ {[%clk 0:02:45.4]} 9. Ne2 {[%clk 0:03:03.4]} 9... f5
{[%clk 0:02:46.1]} 10. Bd2 {[%clk 0:03:01.9]} 10... g6 {[%clk 0:02:39.6]} 11.
O-O-O {[%clk 0:03:02.3]} 11... Nd7 {[%clk 0:02:40.7]} 12. h4 {[%clk 0:02:56.6]}
12... b5 {[%clk 0:02:39.3]} 13. h5 {[%clk 0:02:56]} 13... Qf6 {[%clk 0:02:37.4]}
14. hxg6 {[%clk 0:02:47.1]} 14... fxg6 {[%clk 0:02:38.1]} 15. Qb3+ {[%clk
0:02:42.5]} 15... Kg7 {[%clk 0:02:21.6]} 16. Rxh7+ {[%clk 0:02:36.8]} 16... Kxh7
{[%clk 0:02:21.3]} 17. Rh1+ {[%clk 0:02:37.2]} 17... Kg7 {[%clk 0:02:18.7]} 18.
Bh6+ {[%clk 0:02:37.7]} 18... Kh8 {[%clk 0:02:18.9]} 19. Bf8+ {[%clk 0:02:38.3]}
1-0

[Event "*** Titled Tuesday Blitz"]
[Site "Chess.com"]
[Date "2020.01.07"]
[Round "1"]
[White "davigator"]
[Black "cstevens1"]
[Result "0-1"]
[WhiteElo "2332"]
[BlackElo "2666"]
[TimeControl "180+2"]
[EndTime "13:02:48 PST"]
[Termination "cstevens1 won by resignation"]

1. e4 {[%clk 0:03:01.9]} 1... c5 {[%clk 0:02:58.6]} 2. Nf3 {[%clk 0:03:02.2]}
2... e6 {[%clk 0:02:59.8]} 3. d4 {[%clk 0:03:02.5]} 3... cxd4 {[%clk 0:03:01.6]}
4. Nxd4 {[%clk 0:03:04.2]} 4... a6 {[%clk 0:02:58.9]} 5. Bd3 {[%clk 0:03:04.7]}
5... Bc5 {[%clk 0:02:59.3]} 6. Nb3 {[%clk 0:03:05]} 6... Be7 {[%clk 0:03:00.3]}
7. f4 {[%clk 0:03:04.8]} 7... Qc7 {[%clk 0:02:59.4]} 8. Be3 {[%clk 0:03:05.3]}
8... d6 {[%clk 0:03:00.1]} 9. Nc3 {[%clk 0:03:02.8]} 9... Nd7 {[%clk 0:02:59.6]}
10. Qd2 {[%clk 0:03:03.3]} 10... Ngf6 {[%clk 0:03:00.7]} 11. O-O-O {[%clk
0:03:03.7]} 11... b5 {[%clk 0:03:01.5]} 12. Kb1 {[%clk 0:03:03.5]} 12... Bb7
{[%clk 0:03:02.1]} 13. a3 {[%clk 0:03:04.1]} 13... Rc8 {[%clk 0:03:01.7]} 14.
Rhg1 {[%clk 0:03:02.3]} 14... Ng4 {[%clk 0:03:00.6]} 15. h3 {[%clk 0:02:55.1]}
15... Nxe3 {[%clk 0:03:01.5]} 16. Qxe3 {[%clk 0:02:56.4]} 16... Bf6 {[%clk
0:03:02.6]} 17. Ne2 {[%clk 0:02:56.3]} 17... O-O {[%clk 0:03:01.8]} 18. g4
{[%clk 0:02:56.8]} 18... g6 {[%clk 0:02:47.2]} 19. g5 {[%clk 0:02:53.9]} 19...
Bg7 {[%clk 0:02:48.3]} 20. f5 {[%clk 0:02:55.2]} 20... Be5 {[%clk 0:02:39.2]}
21. Nf4 {[%clk 0:02:55.6]} 21... Rfe8 {[%clk 0:02:39.2]} 22. h4 {[%clk
0:02:55.3]} 22... Nc5 {[%clk 0:02:36]} 23. Nxc5 {[%clk 0:02:54.7]} 23... dxc5
{[%clk 0:02:37.9]} 24. c3 {[%clk 0:02:55.8]} 24... Bxf4 {[%clk 0:02:38.5]} 25.
Qf2 {[%clk 0:02:51.4]} 25... exf5 {[%clk 0:02:34.4]} 26. exf5 {[%clk 0:02:51.5]}
26... Be3 {[%clk 0:02:35.6]} 0-1

[Event "*** Titled Tuesday Blitz"]
[Site "Chess.com"]
[Date "2020.01.07"]
[Round "1"]
[White "luis-garcia"]
[Black "SirMittensofMittensville"]
[Result "0-1"]
[WhiteElo "2148"]
[BlackElo "2556"]
[TimeControl "180+2"]
[EndTime "13:03:16 PST"]
[Termination "SirMittensofMittensville won by resignation"]

1. d4 {[%clk 0:03:01.8]} 1... Nf6 {[%clk 0:03:00.4]} 2. c4 {[%clk 0:03:02.2]}
2... e6 {[%clk 0:03:01.3]} 3. a3 {[%clk 0:03:00.6]} 3... d5 {[%clk 0:03:01.4]}
4. Nf3 {[%clk 0:02:58.9]} 4... Be7 {[%clk 0:02:58.6]} 5. g3 {[%clk 0:02:53.9]}
5... O-O {[%clk 0:02:56.9]} 6. Bg2 {[%clk 0:02:54.6]} 6... dxc4 {[%clk
0:02:58.5]} 7. Ne5 {[%clk 0:02:52.5]} 7... c5 {[%clk 0:02:58.5]} 8. e3 {[%clk
0:02:05.1]} 8... cxd4 {[%clk 0:02:54.7]} 9. exd4 {[%clk 0:02:04.4]} 9... Qc7
{[%clk 0:02:47.5]} 10. O-O {[%clk 0:02:01.6]} 10... Nbd7 {[%clk 0:02:48.4]} 11.
Nc3 {[%clk 0:02:00.6]} 11... Nxe5 {[%clk 0:02:46.6]} 12. dxe5 {[%clk 0:02:01.9]}
12... Qxe5 {[%clk 0:02:47.6]} 13. Bf4 {[%clk 0:02:01.8]} 13... Qc5 {[%clk
0:02:41.2]} 14. Qe2 {[%clk 0:02:01.6]} 14... Bd7 {[%clk 0:02:32.9]} 15. Bxb7
{[%clk 0:01:59.4]} 15... Rad8 {[%clk 0:02:34.4]} 16. Bg2 {[%clk 0:01:52.7]}
16... Bc6 {[%clk 0:02:33]} 17. Be3 {[%clk 0:01:51.2]} 17... Bxg2 {[%clk
0:02:28.5]} 18. Bxc5 {[%clk 0:01:43.3]} 18... Bxf1 {[%clk 0:02:30.4]} 19. Kxf1
{[%clk 0:01:41.7]} 19... Bxc5 {[%clk 0:02:31.5]} 20. Qd3 {[%clk 0:01:40.9]}
20... cxd3 {[%clk 0:02:32.3]} 0-1

[Event "*** Titled Tuesday Blitz"]
[Site "Chess.com"]
[Date "2020.01.07"]
[Round "1"]
[White "Chessmatus"]
[Black "kleinebeer98"]
[Result "0-1"]
[WhiteElo "2345"]
[BlackElo "2694"]
[TimeControl "180+2"]
[EndTime "13:03:45 PST"]
[Termination "kleinebeer98 won by resignation"]

1. e4 {[%clk 0:03:01.3]} 1... e5 {[%clk 0:03:00.9]} 2. Nf3 {[%clk 0:03:02.3]}
2... Nc6 {[%clk 0:03:00.2]} 3. Bb5 {[%clk 0:03:03.2]} 3... f5 {[%clk 0:03:01.5]}
4. Nc3 {[%clk 0:03:01.9]} 4... fxe4 {[%clk 0:03:01.1]} 5. Nxe4 {[%clk
0:03:01.5]} 5... Nf6 {[%clk 0:03:03]} 6. Qe2 {[%clk 0:02:51.1]} 6... d5 {[%clk
0:03:03.3]} 7. Nxf6+ {[%clk 0:02:27.9]} 7... gxf6 {[%clk 0:03:05.2]} 8. d3
{[%clk 0:02:27.4]} 8... Be6 {[%clk 0:02:56.4]} 9. Bd2 {[%clk 0:02:18.8]} 9...
Qd6 {[%clk 0:02:49.5]} 10. O-O-O {[%clk 0:02:18.3]} 10... O-O-O {[%clk
0:02:50.3]} 11. Kb1 {[%clk 0:02:14.5]} 11... a6 {[%clk 0:02:48.1]} 12. Ba4
{[%clk 0:02:14.6]} 12... Rg8 {[%clk 0:02:49.1]} 13. Rhg1 {[%clk 0:02:13]} 13...
Bg7 {[%clk 0:02:33.4]} 14. Rge1 {[%clk 0:01:56.6]} 14... Bh8 {[%clk 0:02:32.3]}
15. g3 {[%clk 0:01:57.3]} 15... Bg4 {[%clk 0:02:32.2]} 16. Qe3 {[%clk
0:01:48.2]} 16... d4 {[%clk 0:02:29.5]} 17. Qe2 {[%clk 0:01:30.6]} 17... Qd5
{[%clk 0:02:27.9]} 18. Bxc6 {[%clk 0:01:27.3]} 18... Qxc6 {[%clk 0:02:24.1]} 19.
Nxe5 {[%clk 0:01:24.3]} 19... fxe5 {[%clk 0:02:26]} 0-1

[Event "*** Titled Tuesday Blitz"]
[Site "Chess.com"]
[Date "2020.01.07"]
[Round "1"]
[White "Ray_Yang"]
[Black "Ar4uha"]
[Result "0-1"]
[WhiteElo "2257"]
[BlackElo "2598"]
[TimeControl "180+2"]
[EndTime "13:03:58 PST"]
[Termination "Ar4uha won by checkmate"]

1. d4 {[%clk 0:03:01]} 1... Nf6 {[%clk 0:02:55.1]} 2. Bg5 {[%clk 0:03:00.7]}
2... e6 {[%clk 0:02:55.1]} 3. e4 {[%clk 0:03:00.4]} 3... h6 {[%clk 0:02:56.5]}
4. Bxf6 {[%clk 0:03:01]} 4... Qxf6 {[%clk 0:02:58.4]} 5. c3 {[%clk 0:03:00.1]}
5... d5 {[%clk 0:02:59.5]} 6. Nd2 {[%clk 0:02:55.2]} 6... c5 {[%clk 0:03:00.7]}
7. Ngf3 {[%clk 0:02:55.1]} 7... Nc6 {[%clk 0:03:01.7]} 8. Bb5 {[%clk 0:02:40.5]}
8... Bd7 {[%clk 0:02:58.5]} 9. O-O {[%clk 0:02:37.3]} 9... cxd4 {[%clk
0:02:48.4]} 10. Bxc6 {[%clk 0:02:33.1]} 10... Bxc6 {[%clk 0:02:46.8]} 11. e5
{[%clk 0:02:33.1]} 11... Qd8 {[%clk 0:02:47.4]} 12. Nxd4 {[%clk 0:02:32]} 12...
Be7 {[%clk 0:02:45.3]} 13. N2b3 {[%clk 0:02:30.4]} 13... a5 {[%clk 0:02:45.2]}
14. Nxc6 {[%clk 0:02:29.3]} 14... bxc6 {[%clk 0:02:47.1]} 15. Nd4 {[%clk
0:02:29.7]} 15... Qb6 {[%clk 0:02:48.4]} 16. Qa4 {[%clk 0:02:28.5]} 16... O-O
{[%clk 0:02:45.2]} 17. Qxc6 {[%clk 0:02:20.7]} 17... Qxb2 {[%clk 0:02:43.2]} 18.
Rfb1 {[%clk 0:02:08.1]} 18... Qd2 {[%clk 0:02:43.1]} 19. Rb7 {[%clk 0:01:55.4]}
19... Bg5 {[%clk 0:02:43]} 20. Rxf7 {[%clk 0:01:11.7]} 20... Rxf7 {[%clk
0:02:39.2]} 21. Qxa8+ {[%clk 0:01:11.9]} 21... Rf8 {[%clk 0:02:40.5]} 22. Qc6
{[%clk 0:01:11.6]} 22... Qxf2+ {[%clk 0:02:41.2]} 23. Kh1 {[%clk 0:01:07.8]}
23... Qf1+ {[%clk 0:02:43.1]} 24. Rxf1 {[%clk 0:01:07.1]} 24... Rxf1# {[%clk
0:02:45]} 0-1

[Event "*** Titled Tuesday Blitz"]
[Site "Chess.com"]
[Date "2020.01.07"]
[Round "1"]
[White "arminmusovic"]
[Black "Hikaru"]
[Result "0-1"]
[WhiteElo "2513"]
[BlackElo "3134"]
[TimeControl "180+2"]
[EndTime "13:04:26 PST"]
[Termination "Hikaru won by resignation"]

1. a3 {[%clk 0:02:56.2]} 1... e5 {[%clk 0:02:57.3]} 2. Nc3 {[%clk 0:02:57.4]}
2... d5 {[%clk 0:02:57.3]} 3. d4 {[%clk 0:02:58.8]} 3... e4 {[%clk 0:02:54.9]}
4. Bf4 {[%clk 0:02:58.2]} 4... c6 {[%clk 0:02:52.1]} 5. e3 {[%clk 0:02:58]} 5...
Bd6 {[%clk 0:02:51.5]} 6. Nge2 {[%clk 0:02:59.2]} 6... h5 {[%clk 0:02:48.2]} 7.
h4 {[%clk 0:02:52]} 7... Bg4 {[%clk 0:02:48.8]} 8. Qd2 {[%clk 0:02:53.3]} 8...
Ne7 {[%clk 0:02:49.2]} 9. Bxd6 {[%clk 0:02:53]} 9... Qxd6 {[%clk 0:02:51.1]} 10.
Nf4 {[%clk 0:02:54.4]} 10... Ng6 {[%clk 0:02:52.2]} 11. Nce2 {[%clk 0:02:54.2]}
11... Ne7 {[%clk 0:02:45.9]} 12. Nc3 {[%clk 0:02:54.5]} 12... Nd7 {[%clk
0:02:46.3]} 13. Be2 {[%clk 0:02:49.9]} 13... b5 {[%clk 0:02:46.4]} 14. f3 {[%clk
0:02:45.6]} 14... exf3 {[%clk 0:02:46.4]} 15. gxf3 {[%clk 0:02:46.9]} 15... Bf5
{[%clk 0:02:47.9]} 16. e4 {[%clk 0:02:46.7]} 16... dxe4 {[%clk 0:02:48.4]} 17.
fxe4 {[%clk 0:02:48.3]} 17... Bg4 {[%clk 0:02:50.1]} 18. e5 {[%clk 0:02:36.9]}
18... Qh6 {[%clk 0:02:51]} 19. O-O-O {[%clk 0:02:38.2]} 19... Nb6 {[%clk
0:02:50.4]} 20. Rdg1 {[%clk 0:02:29.2]} 20... O-O-O {[%clk 0:02:37.3]} 21. Kb1
{[%clk 0:02:20.9]} 21... Ng6 {[%clk 0:02:20.3]} 22. Bxg4+ {[%clk 0:02:18.9]}
22... hxg4 {[%clk 0:02:21.5]} 23. Nce2 {[%clk 0:02:20.5]} 23... Nc4 {[%clk
0:02:14.5]} 24. Qc1 {[%clk 0:02:17.9]} 24... Nxf4 {[%clk 0:02:15.1]} 25. Nxf4
{[%clk 0:02:11]} 25... Rxd4 {[%clk 0:02:15.8]} 26. Rxg4 {[%clk 0:01:57.4]} 26...
Nd2+ {[%clk 0:02:16.7]} 27. Ka1 {[%clk 0:01:39]} 27... Rxf4 {[%clk 0:02:17.7]}
28. Rg5 {[%clk 0:01:35.8]} 28... Qxg5 {[%clk 0:02:16.2]} 29. hxg5 {[%clk
0:01:30.4]} 29... Rxh1 {[%clk 0:02:18.1]} 30. Qxh1 {[%clk 0:01:31.6]} 30... Rf1+
{[%clk 0:02:19.3]} 31. Qxf1 {[%clk 0:01:33]} 31... Nxf1 {[%clk 0:02:21.2]} 32.
g6 {[%clk 0:01:34]} 32... fxg6 {[%clk 0:02:22.4]} 0-1

[Event "*** Titled Tuesday Blitz"]
[Site "Chess.com"]
[Date "2020.01.07"]
[Round "1"]
[White "Majkelopulos"]
[Black "PNEPaul"]
[Result "1-0"]
[WhiteElo "2513"]
[BlackElo "1816"]
[TimeControl "180+2"]
[EndTime "13:04:39 PST"]
[Termination "Majkelopulos won by resignation"]

1. e4 {[%clk 0:03:01.9]} 1... e5 {[%clk 0:03:00.3]} 2. Nc3 {[%clk 0:03:00.3]}
2... Nc6 {[%clk 0:03:00.5]} 3. g3 {[%clk 0:03:00.9]} 3... g6 {[%clk 0:03:00.7]}
4. Bg2 {[%clk 0:03:02.4]} 4... Bg7 {[%clk 0:03:01.6]} 5. Nge2 {[%clk 0:03:04]}
5... Nge7 {[%clk 0:03:01.4]} 6. O-O {[%clk 0:03:04.9]} 6... O-O {[%clk
0:03:02.3]} 7. d3 {[%clk 0:02:59.6]} 7... d6 {[%clk 0:03:03]} 8. h3 {[%clk
0:02:50.9]} 8... f5 {[%clk 0:03:01.1]} 9. Kh2 {[%clk 0:02:49.6]} 9... Nd4 {[%clk
0:02:49.9]} 10. Bg5 {[%clk 0:02:32.5]} 10... h6 {[%clk 0:02:48.2]} 11. Bxe7
{[%clk 0:02:32.4]} 11... Qxe7 {[%clk 0:02:49]} 12. Nd5 {[%clk 0:02:34]} 12...
Qd8 {[%clk 0:02:49.5]} 13. Nxd4 {[%clk 0:02:34.3]} 13... exd4 {[%clk 0:02:49.1]}
14. a4 {[%clk 0:02:19.2]} 14... c6 {[%clk 0:02:49.6]} 15. Nb4 {[%clk 0:02:19.8]}
15... a5 {[%clk 0:02:45.8]} 16. Na2 {[%clk 0:02:20.2]} 16... fxe4 {[%clk
0:02:30.4]} 17. dxe4 {[%clk 0:02:19.7]} 17... Be6 {[%clk 0:02:26.8]} 18. f4
{[%clk 0:02:17.1]} 18... Qd7 {[%clk 0:02:17.9]} 19. Nc1 {[%clk 0:02:16.6]} 19...
Bc4 {[%clk 0:02:13.9]} 20. Nd3 {[%clk 0:02:17.3]} 20... Rae8 {[%clk 0:02:08.5]}
21. Qd2 {[%clk 0:02:16.7]} 21... b6 {[%clk 0:02:04.7]} 22. Rae1 {[%clk
0:02:17.6]} 22... Bxd3 {[%clk 0:01:49.1]} 23. cxd3 {[%clk 0:02:07.5]} 23... c5
{[%clk 0:01:49.5]} 24. b3 {[%clk 0:02:07.4]} 24... b5 {[%clk 0:01:44.6]} 25.
Qxa5 {[%clk 0:02:06.8]} 25... bxa4 {[%clk 0:01:45.2]} 26. Qxa4 {[%clk 0:02:03]}
26... Qxa4 {[%clk 0:01:45.8]} 27. bxa4 {[%clk 0:02:04.9]} 27... Ra8 {[%clk
0:01:45]} 28. e5 {[%clk 0:02:03.2]} 28... Rxa4 {[%clk 0:01:43.3]} 29. exd6
{[%clk 0:02:04.7]} 29... Rd8 {[%clk 0:01:38.4]} 30. d7 {[%clk 0:02:05.5]} 30...
Ra7 {[%clk 0:01:37.1]} 31. Re8+ {[%clk 0:02:05]} 1-0

[Event "*** Titled Tuesday Blitz"]
[Site "Chess.com"]
[Date "2020.01.07"]
[Round "1"]
[White "jedipredator"]
[Black "KhazarBabazada"]
[Result "0-1"]
[WhiteElo "2480"]
[BlackElo "2916"]
[TimeControl "180+2"]
[EndTime "13:04:49 PST"]
[Termination "KhazarBabazada won on time"]

1. e4 {[%clk 0:03:01.9]} 1... Nf6 {[%clk 0:02:58.1]} 2. e5 {[%clk 0:03:02.4]}
2... Nd5 {[%clk 0:02:56.2]} 3. d4 {[%clk 0:03:03.2]} 3... d6 {[%clk 0:02:57.2]}
4. c4 {[%clk 0:03:03.6]} 4... Nb6 {[%clk 0:02:57.5]} 5. f4 {[%clk 0:03:05.1]}
5... g6 {[%clk 0:02:58]} 6. Nf3 {[%clk 0:03:05.4]} 6... Bg7 {[%clk 0:02:58.9]}
7. Be2 {[%clk 0:03:02.2]} 7... O-O {[%clk 0:03:00.4]} 8. O-O {[%clk 0:03:01.9]}
8... dxe5 {[%clk 0:02:59.9]} 9. fxe5 {[%clk 0:03:02.4]} 9... Bg4 {[%clk
0:02:57.1]} 10. Be3 {[%clk 0:02:39.3]} 10... f6 {[%clk 0:02:41.9]} 11. exf6
{[%clk 0:02:37.8]} 11... exf6 {[%clk 0:02:43.8]} 12. Nc3 {[%clk 0:02:36.3]}
12... Re8 {[%clk 0:02:43.4]} 13. Bf2 {[%clk 0:02:29]} 13... Nc6 {[%clk
0:02:44.6]} 14. c5 {[%clk 0:02:24.8]} 14... Nd5 {[%clk 0:02:42.3]} 15. Qb3
{[%clk 0:02:21.1]} 15... Be6 {[%clk 0:02:43]} 16. Qxb7 {[%clk 0:01:57.9]} 16...
a6 {[%clk 0:02:38.1]} 17. Bc4 {[%clk 0:01:34.9]} 17... Na5 {[%clk 0:02:37.8]}
18. Qxd5 {[%clk 0:01:33.6]} 18... Bxd5 {[%clk 0:02:38.9]} 0-1

[Event "*** Titled Tuesday Blitz"]
[Site "Chess.com"]
[Date "2020.01.07"]
[Round "1"]
[White "Szczor"]
[Black "narutosmith"]
[Result "1-0"]
[WhiteElo "2601"]
[BlackElo "2261"]
[TimeControl "180+2"]
[EndTime "13:05:07 PST"]
[Termination "Szczor won by checkmate"]

1. e4 {[%clk 0:03:01.9]} 1... c5 {[%clk 0:03:00.6]} 2. Nf3 {[%clk 0:03:03.2]}
2... e6 {[%clk 0:03:01.8]} 3. d4 {[%clk 0:03:04.7]} 3... cxd4 {[%clk 0:03:03.3]}
4. Nxd4 {[%clk 0:03:06.6]} 4... a6 {[%clk 0:03:04.4]} 5. Nc3 {[%clk 0:03:08.1]}
5... Qc7 {[%clk 0:03:05.5]} 6. Be3 {[%clk 0:03:09.1]} 6... Nf6 {[%clk
0:03:05.9]} 7. Bd3 {[%clk 0:03:06.9]} 7... Bb4 {[%clk 0:03:05.9]} 8. O-O {[%clk
0:03:07.3]} 8... O-O {[%clk 0:03:00.8]} 9. f4 {[%clk 0:03:07.9]} 9... d6 {[%clk
0:02:57.8]} 10. f5 {[%clk 0:02:54.7]} 10... e5 {[%clk 0:02:51.6]} 11. Nde2
{[%clk 0:02:54.9]} 11... Bc5 {[%clk 0:02:49.9]} 12. Bxc5 {[%clk 0:02:55.1]}
12... Qxc5+ {[%clk 0:02:50.4]} 13. Kh1 {[%clk 0:02:56.7]} 13... b5 {[%clk
0:02:43.1]} 14. a3 {[%clk 0:02:56.5]} 14... Bb7 {[%clk 0:02:43.1]} 15. Ng3
{[%clk 0:02:57.9]} 15... Nbd7 {[%clk 0:02:41.6]} 16. Qf3 {[%clk 0:02:49.1]}
16... Nb6 {[%clk 0:02:27]} 17. Nh5 {[%clk 0:02:47.6]} 17... Nbd7 {[%clk
0:02:16.8]} 18. g4 {[%clk 0:02:46.6]} 18... h6 {[%clk 0:02:17.2]} 19. Rg1 {[%clk
0:02:45.6]} 19... d5 {[%clk 0:02:10.6]} 20. g5 {[%clk 0:02:38.8]} 20... dxe4
{[%clk 0:02:00.8]} 21. Nxe4 {[%clk 0:02:34.2]} 21... Nxh5 {[%clk 0:01:44.1]} 22.
Qxh5 {[%clk 0:02:34.5]} 22... Qc6 {[%clk 0:01:15.2]} 23. gxh6 {[%clk 0:02:18.4]}
23... g6 {[%clk 0:00:58.1]} 24. fxg6 {[%clk 0:02:13.3]} 24... f5 {[%clk
0:00:55.8]} 25. g7 {[%clk 0:02:03.2]} 25... fxe4 {[%clk 0:00:46.2]} 26. h7#
{[%clk 0:02:02.6]} 1-0

[Event "*** Titled Tuesday Blitz"]
[Site "Chess.com"]
[Date "2020.01.07"]
[Round "1"]
[White "FearNoEvil12"]
[Black "ValeriyGrinev"]
[Result "0-1"]
[WhiteElo "2029"]
[BlackElo "2529"]
[TimeControl "180+2"]
[EndTime "13:05:08 PST"]
[Termination "ValeriyGrinev won by resignation"]

1. e4 {[%clk 0:03:01.9]} 1... c5 {[%clk 0:03:00.5]} 2. Nc3 {[%clk 0:03:01.6]}
2... e6 {[%clk 0:03:01.9]} 3. f4 {[%clk 0:03:02.8]} 3... d5 {[%clk 0:03:01.9]}
4. Nf3 {[%clk 0:03:03.9]} 4... dxe4 {[%clk 0:03:01.1]} 5. Nxe4 {[%clk
0:03:03.9]} 5... Bd7 {[%clk 0:03:01]} 6. d3 {[%clk 0:03:03.1]} 6... Bc6 {[%clk
0:03:02.3]} 7. g3 {[%clk 0:03:04.5]} 7... Nd7 {[%clk 0:03:03.1]} 8. Qe2 {[%clk
0:03:04.2]} 8... Ngf6 {[%clk 0:03:03.6]} 9. Bg2 {[%clk 0:03:04.3]} 9... Be7
{[%clk 0:03:04.4]} 10. O-O {[%clk 0:03:04.2]} 10... O-O {[%clk 0:03:05.2]} 11.
Ne5 {[%clk 0:03:02.9]} 11... Nxe5 {[%clk 0:03:05.2]} 12. fxe5 {[%clk 0:03:03.3]}
12... Nxe4 {[%clk 0:03:06.4]} 13. Bxe4 {[%clk 0:03:03]} 13... Qd4+ {[%clk
0:03:04.5]} 14. Be3 {[%clk 0:02:59.4]} 14... Qxe5 {[%clk 0:03:05.2]} 15. Bxc6
{[%clk 0:02:59.6]} 15... bxc6 {[%clk 0:03:05.2]} 16. Qf2 {[%clk 0:02:59.7]}
16... Qxb2 {[%clk 0:03:02.2]} 17. Rae1 {[%clk 0:02:49.7]} 17... Qxa2 {[%clk
0:03:00.7]} 18. Bf4 {[%clk 0:02:47.7]} 18... f6 {[%clk 0:02:57.1]} 19. Qf3
{[%clk 0:02:40.6]} 19... Qd5 {[%clk 0:02:43.3]} 20. Qg4 {[%clk 0:02:38.4]} 20...
e5 {[%clk 0:02:42.4]} 21. Be3 {[%clk 0:02:34.3]} 21... Kh8 {[%clk 0:02:33.4]}
22. Rf5 {[%clk 0:02:32.9]} 22... g6 {[%clk 0:02:30.5]} 23. Rf2 {[%clk
0:02:32.1]} 23... f5 {[%clk 0:02:31.7]} 24. Qe2 {[%clk 0:02:25.3]} 24... Bf6
{[%clk 0:02:32.9]} 25. Bh6 {[%clk 0:02:12.9]} 25... Rf7 {[%clk 0:02:29.9]} 26.
Qd2 {[%clk 0:02:08.8]} 26... c4 {[%clk 0:02:27]} 27. Bg5 {[%clk 0:02:06.2]}
27... cxd3 {[%clk 0:02:26.6]} 28. cxd3 {[%clk 0:02:06.4]} 28... Re8 {[%clk
0:02:22.8]} 29. Bxf6+ {[%clk 0:01:51.3]} 29... Rxf6 {[%clk 0:02:24.7]} 30. Qg5
{[%clk 0:01:51.4]} 30... Kg7 {[%clk 0:02:21.4]} 31. Qe3 {[%clk 0:01:40.2]} 31...
Re7 {[%clk 0:02:20]} 32. h4 {[%clk 0:01:39.8]} 32... h5 {[%clk 0:02:17.6]} 33.
Kh2 {[%clk 0:01:39.2]} 33... c5 {[%clk 0:02:17.7]} 34. Ref1 {[%clk 0:01:34.2]}
34... Qd4 {[%clk 0:02:18.3]} 35. Qg5 {[%clk 0:01:33.8]} 35... Qg4 {[%clk
0:02:17.9]} 36. Qe3 {[%clk 0:01:26.6]} 36... Qd4 {[%clk 0:02:16.9]} 37. Qg5
{[%clk 0:01:26.7]} 37... Ref7 {[%clk 0:02:18.1]} 38. Qe3 {[%clk 0:01:22.9]}
38... Qxe3 {[%clk 0:02:18.4]} 0-1